Cogmind - Beta 14 @@@ ROGUE MODE // 2024.11.03 @ 19:25:48 Player: Steeredaxe Result: Self-destructed Performance ------------- Evolutions (2) 1000 Regions Visited (3) 600 Robots Destroyed (21) 105 Value Destroyed (381) 381 Prototype IDs (0) 0 Alien Tech Used (0) 0 Bonus (0) 0 TOTAL SCORE: 2086 Bonus ------- None Cogmind --------- Core Integrity 123/550 Matter 103/300 Energy 100/100 System Corruption 0% Temperature Cool (9) Movement Core (700) Ox13 Location -8/Materials Parts ------- > --- POWER (2) -------- (None) > --- PROPULSION (2) --- (None) > --- UTILITY (4) ------ High-capacity Storage Unit Structural Scanner Terrain Scan Processor > --- WEAPON (3) ------- (None) > --- INVENTORY (20) --- Aluminum Leg Large Storage Unit Large Storage Unit Medium Battery (150) Large Matter Pod (0) Large Matter Pod (0) Terrain Scan Processor Targeting Computer Light Armor Plating Light Armor Plating Assault Rifle Maul Mining Claw Peak State ------------ > --- POWER ------------ Ion Engine Light Ion Engine > --- PROPULSION ------- Aluminum Leg Aluminum Leg > --- UTILITY ---------- High-capacity Storage Unit Structural Scanner Terrain Scanner Terrain Scan Processor > --- WEAPON ----------- EM Shotgun Heavy Assault Rifle > --- INVENTORY -------- Light Ion Engine Aluminum Leg Large Storage Unit Large Storage Unit Medium Battery Large Matter Pod Large Matter Pod Terrain Scan Processor Targeting Computer Light Armor Plating Light Armor Plating Assault Rifle Mining Laser Maul Mining Claw [Rating: 14] Favorites ----------- Power Ion Engine Engine Ion Engine Propulsion Aluminum Leg Treads Light Treads Leg Aluminum Leg Utility Large Matter Pod Device Structural Scanner Storage Large Matter Pod Processor Terrain Scan Processor Protection Light Armor Plating Weapon Grenade Launcher Energy Gun EM Shotgun Ballistic Gun Assault Rifle Launcher Grenade Launcher Special Weapon Mining Laser Build | -11 -10 -9 -8 ------- Run | Yrd Mat Mat Mat Slots Evolved 4 | . . 2 2 Power 1 | . . 1 . Propulsion . | . . . . Utility 2 | . . 1 1 Weapon 1 | . . . 1 Parts Attached 27 | 6 5 10 6 Power 5 | 1 1 2 1 Engine 5 | 1 1 2 1 Core . | . . . . Reactor . | . . . . Propulsion 6 | 2 . 4 . Treads 3 | 2 . 1 . Leg 3 | . . 3 . Wheel . | . . . . Hover . | . . . . Flight . | . . . . Utility 8 | 1 2 2 3 Device 2 | . . . 2 Storage 4 | 1 2 1 . Processor 1 | . . . 1 Hackware . | . . . . Protection 1 | . . 1 . Artifact . | . . . . Weapon 8 | 2 2 2 2 Energy Gun 3 | 1 . 2 . Energy Cannon . | . . . . Ballistic Gun 2 | 1 . . 1 Ballistic Cannon . | . . . . Launcher 2 | . 2 . . Special Weapon 1 | . . . 1 Impact Weapon . | . . . . Slashing Weapon . | . . . . Piercing Weapon . | . . . . Special Melee Weapon . | . . . . Unidentified Prototypes . | . . . . Parts Lost 12 | . 2 . 10 Power 4 | . 1 . 3 Propulsion 2 | . . . 2 Utility 1 | . . . 1 Weapon 5 | . 1 . 4 Highest Loss Streak 10 | . 2 . 10 To Critical Strikes . | . . . . Average Slot Usage (%) 94 | . 96 96 55 Engine 17 | . 13 21 7 Treads 10 | . 28 1 . Leg 12 | . . 20 9 Storage 22 | . 25 22 9 Protection 5 | . . 8 . Energy Gun 1 | . . 1 3 Ballistic Gun 10 | . 14 9 . Launcher 11 | . 13 11 2 Peak Build Rating 14 | 6 8 12 14 Average Rating 8 | 4 7 10 8 On Entrance 6 | . 6 8 11 Naked Turns . | . . . . Heaviest Build 60 | 14 33 60 56 Greatest Support 40 | 40 40 40 20 Greatest Overweight (x) 14 | . . 2 14 Average Overweight (x) . | . . 1 5 Largest Inventory Capacity 20 | 8 15 20 20 Average Capacity 16 | 7 13 17 20 Most Carried 20 | 4 14 20 18 Average Carried 11 | 2 7 14 14 Final Capacity 20 | 8 15 20 20 Final Carried 18 | 3 14 18 13 Class Distribution -------------------- 97% | Mutant Dominant Class ---------------- Mutant | -10/Materials Mutant | -9/Materials Mutant | -8/Materials Resources | -11 -10 -9 -8 ----------- Run | Yrd Mat Mat Mat Matter Collected 472 | 230 3 239 . Remotely . | . . . . Salvage Created 323 | . 57 256 10 Parts 38 | . 10 24 4 Haulers Intercepted . | . . . . Recyclers Shooed . | . . . . Parts Field Recycled . | . . . . Retrieved Matter . | . . . . Parts Self-Destructed . | . . . . Prevented . | . . . . Kills | -11 -10 -9 -8 ------- Run | Yrd Mat Mat Mat Combat Hostiles Destroyed 12 | . 2 7 3 Guns 5 | . 1 3 1 AOE 7 | . 1 4 2 Classes Destroyed 6 | . 3 3 . Worker 3 | . . 3 . Builder 2 | . 1 1 . Watcher 4 | . 2 2 . Swarmer 7 | . . 4 3 Grunt 4 | . 2 2 . Sentry 1 | . . 1 . Best Kill Streak 6 | . 3 6 3 Combat Bots Only 4 | . 2 4 3 Max Kills in Single Turn 3 | . 2 3 2 Gunslinging . | . . . . Exploded 2 | . 1 1 2 Melee . | . . . . Uniques/NPCs Destroyed . | . . . . Combat | -11 -10 -9 -8 -------- Run | Yrd Mat Mat Mat Hostile Shots Fired 112 | . 23 16 73 Missed 31 | . 3 6 22 Damage Taken 1811 | . 675 157 979 Core 514 | . 77 10 427 Absorbed by Shields . | . . . . Core Remaining (%) 88 | 100 69 97 . Volleys Fired 26 | . 11 10 5 Largest 2 | . 2 2 2 Hottest 75 | . 50 50 75 Shots Fired 45 | . 20 19 6 Gun 26 | . 11 10 5 Cannon . | . . . . Launcher 19 | . 9 9 1 Special . | . . . . Kinetic 21 | . 11 10 . Thermal . | . . . . Explosive 19 | . 9 9 1 Electromagnetic 5 | . . . 5 Robot Hit Streak 7 | . 6 7 1 Robot Miss Streak 6 | . 2 1 6 Penetration Max . | . . . . Secondary Targets . | . . . . Shots Hit Robots 27 | . 14 11 2 Core Hits 40 | . 20 17 3 Critical Kills . | . . . . Critical Parts Destroyed . | . . . . Critical Strikes . | . . . . Melee Attacks . | . . . . Impact . | . . . . Slashing . | . . . . Piercing . | . . . . Sneak Attacks . | . . . . Combat Hostiles . | . . . . Follow-up Attacks . | . . . . Damage Inflicted 1100 | . 494 467 139 Guns 206 | . 94 103 9 Cannons . | . . . . Explosions 894 | . 400 364 130 Melee . | . . . . Ramming . | . . . . Kinetic 197 | . 94 103 . Thermal . | . . . . Explosive 894 | . 400 364 130 Electromagnetic 9 | . . . 9 Impact . | . . . . Slashing . | . . . . Piercing . | . . . . Highest Corruption 4 | . 4 . . Average Corruption 4 | . 4 . . Corruption Purged . | . . . . Corruption Blocked . | . . . . Effects 1 | . 1 . . Matter Fused 1 | . 1 . . Overload Shots . | . . . . Overflow Damage . | . . . . Projectiles . | . . . . Explosions . | . . . . Melee . | . . . . Knockbacks . | . . . . Impact . | . . . . Kinetic . | . . . . Secondary . | . . . . Self-Inflicted Damage 214 | . 141 49 24 Shots 10 | . 6 3 1 Rammed . | . . . . Targets Rammed . | . . . . Kicked . | . . . . Crushed . | . . . . Highest Temperature 49 | . 49 27 14 Average Temperature 16 | . 25 11 9 Received Heat Transfer 561 | . 93 27 441 Siege Activations . | . . . . Robots Corrupted . | . . . . Combat Hostiles . | . . . . Parts Fried . | . . . . Impact Corruptions . | . . . . Robots Melted . | . . . . Combat Hostiles . | . . . . Parts Melted . | . . . . Heat Transferred . | . . . . Parts Sabotaged . | . . . . Parts Stolen . | . . . . Parts Stripped . | . . . . Power Chain Reactions . | . . . . Alert | -11 -10 -9 -8 ------- Run | Yrd Mat Mat Mat Peak Influence 287 | . 90 287 62 Initial 29 | . . 29 2 Average 68 | . 21 105 14 Maximum Alert Level 1 | . . 1 . Low Security (%) 98 | 100 100 96 100 Level 1 1 | . . 3 . Level 2 . | . . . . Level 3 . | . . . . Level 4 . | . . . . Level 5 . | . . . . High Security . | . . . . Max Security . | . . . . Squads Dispatched 1 | . . 1 . Investigation 1 | . . 1 . Extermination . | . . . . Reinforcement . | . . . . Assault . | . . . . Garrison . | . . . . Intercept . | . . . . Searches Triggered . | . . . . Construction Impeded . | . . . . Haulers Reinforced . | . . . . Active Scanning Responses . | . . . . Cargo Convoy Interrupts . | . . . . Stealth | -11 -10 -9 -8 --------- Run | Yrd Mat Mat Mat Distress Signals 1 | . . . 1 Communications Jammed . | . . . . Distress Signals . | . . . . Times Spotted 23 | . 8 8 7 Peak Tracking Total 5 | . 3 4 5 Tactical Retreats 1 | . . . 1 Traps | -11 -10 -9 -8 ------- Run | Yrd Mat Mat Mat Traps Triggered 2 | . . 2 . Indirectly . | . . . . Trap Hack Attempts . | . . . . Triggered . | . . . . Disarmed . | . . . . Reprogrammed . | . . . . Reused . | . . . . Traps Extracted . | . . . . Installed . | . . . . Triggered . | . . . . Machines | -11 -10 -9 -8 ---------- Run | Yrd Mat Mat Mat Machines Disabled 4 | . 1 3 . Max in Single Turn 2 | . 1 2 . Machines Repaired . | . . . . Machines Dismantled . | . . . . Machines Sabotaged . | . . . . Overloaded Fab Kills . | . . . . Hacking | -11 -10 -9 -8 --------- Run | Yrd Mat Mat Mat Machines Accessed 4 | . 2 2 . Terminals 4 | . 2 2 . Fabricators . | . . . . Repair Stations . | . . . . Recycling Units . | . . . . Scanalyzers . | . . . . Garrison Access . | . . . . Total Hacks 7 | . 4 3 . Successful 2 | . 2 . . Failed 5 | . 2 3 . Catastrophic . | . . . . Database Lockouts . | . . . . Manual . | . . . . Terminals 7 | . 4 3 . Fabricators . | . . . . Repair Stations . | . . . . Recycling Units . | . . . . Scanalyzers . | . . . . Garrison Access . | . . . . Terminal Hacks 2 | . 2 . . Record 1 | . 1 . . Maintenance Status 1 | . 1 . . Fabricator Hacks . | . . . . Repair Station Hacks . | . . . . Recycling Unit Hacks . | . . . . Scanalyzer . | . . . . Garrison Access Hacks . | . . . . Unauthorized Hacks . | . . . . Terminals . | . . . . Fabricators . | . . . . Repair Stations . | . . . . Recycling Units . | . . . . Scanalyzers . | . . . . Garrison Access . | . . . . Data Cores Recovered . | . . . . Used . | . . . . Hacking Detections . | . . . . Full Trace Events . | . . . . Feedback Events . | . . . . Feedback Blocked . | . . . . Robot Schematics Acquired . | . . . . Robots Built . | . . . . Authchips . | . . . . Time . | . . . . Total Robot Build Rating . | . . . . Part Schematics Acquired . | . . . . Parts Built . | . . . . Authchips . | . . . . Time . | . . . . Total Part Build Rating . | . . . . Parts Repaired . | . . . . Time . | . . . . Parts Recycled . | . . . . Recycled Matter . | . . . . Retrieved Matter . | . . . . Retrieved Components . | . . . . Parts Scanalyzed . | . . . . Part Schematics Acquired . | . . . . Parts Damaged . | . . . . Bothacking | -11 -10 -9 -8 ------------ Run | Yrd Mat Mat Mat Used RIF Installer . | . . . . Robots Hacked . | . . . . Non-combat . | . . . . Combat . | . . . . Robot Hacks Applied . | . . . . Relay Couplers Released . | . . . . Fabnet Peak Effective % . | . . . . Robots Rewired . | . . . . Allies Hacked . | . . . . Hacks Repelled . | . . . . Allies | -11 -10 -9 -8 -------- Run | Yrd Mat Mat Mat Total Allies . | . . . . Largest Group . | . . . . Highest-Rated Group . | . . . . Highest-Rated Ally . | . . . . Total Orders . | . . . . Ally Attacks . | . . . . Total Damage . | . . . . Kills . | . . . . Allies Corrupted . | . . . . Allies Melted . | . . . . Intel | -11 -10 -9 -8 ------- Run | Yrd Mat Mat Mat Robot Analysis Total . | . . . . Derelict Logs Recovered . | . . . . Drone Launches . | . . . . Drone Recoveries . | . . . . Exploration | -11 -10 -9 -8 ------------- Run | Yrd Mat Mat Mat Turns Passed 1746 | 83 560 1004 99 Spaces Moved 810 | 46 317 428 19 Core 12 | 7 . . 5 Treads 398 | 39 317 42 . Legs 400 | . . 386 14 Wheels . | . . . . Hover . | . . . . Flight . | . . . . Fastest Speed 50 | 50 160 160 260 Average Speed 195 | 143 160 218 422 Slowest Speed 750 | 160 160 260 750 Overloaded Moves . | . . . . Propulsion Burnouts . | . . . . Robots Hopped . | . . . . Cave-ins Triggered 1 | . 1 . . Exploration Rate (%) 21 | 3 47 29 6 Regions Visited 3 Branch Regions . Pre-discovered Areas . | . . . . Known Exits Taken . | . . . . Unknown Exits Taken 3 | 1 1 1 . Scrap Searched . | . . . . Spaces Dug . | . . . . Terrain Destroyed 116 | . 65 47 4 Melee . | . . . . Projectile . | . . . . AOE 116 | . 65 47 4 Terrain Rammed . | . . . . Walls Destroyed . | . . . . Machines Disabled . | . . . . Actions | -11 -10 -9 -8 --------- Run | Yrd Mat Mat Mat Total 925 | 63 349 481 32 Wait 19 | 3 3 12 1 Move 807 | 45 316 427 19 Hop . | . . . . Pick Up 38 | 9 14 15 . Fast Attach . | . . . . Attach 19 | 6 3 4 6 Detach 1 | . . . 1 Swap 8 | . 2 6 . Drop 7 | . . 7 . Fire 26 | . 11 10 5 Melee . | . . . . Ram . | . . . . Kick . | . . . . Crush . | . . . . Escape Stasis . | . . . . Rewire . | . . . . Trap . | . . . . Miscellaneous . | . . . . Route ------- -11/Scrapyard -10/Materials (discovered 2 exits: *Mat / [*Min]) -9/Materials (discovered 2 exits: [*Mat] / [*Min]) -8/Materials History --------- Turn | Location | Event 16 | -11/Scrapyard | Discovered new exit (range 16) 84 | -11/Scrapyard | Entered Materials 315 | -10/Materials | Build established: Mutant 338 | -10/Materials | Discovered new exit (range 7) 566 | -10/Materials | Crushed by falling debris 617 | -10/Materials | Discovered new exit (range 5) 644 | -10/Materials | Entered another Materials area 644 | -9/Materials | Evolved 2 slots: Power x1, Utility x1 1241 | -9/Materials | Discovered new exit (range 9) 1393 | -9/Materials | Discovered new exit (range 16) 1648 | -9/Materials | Entered another Materials area 1648 | -8/Materials | Evolved 2 slots: Utility x1, Weapon x1 1725 | -8/Materials | Core integrity fell below 50% 1747 | -8/Materials | Self-destructed Last Messages --------------- Hvy. Assault Rifle destroyed. [Achievement: Storm Trooper] Ion Engine destroyed. S-10 Pest destroyed. EM Shotgun destroyed. Aluminum Leg destroyed. The unstable cave ceiling collapses. K-01 Serf collects debris. U-05 Engineer builds a Wall. Nuclear Reactor explodes. Mining Laser destroyed. The unstable cave ceiling collapses. Aluminum Leg destroyed. Terrain Scanner destroyed. Critical hit (Burn: +37). Lgt. Ion Engine destroyed. Critical hit (Burn: +37). U-05 Engineer lays Concrete. The unstable cave ceiling collapses. U-05 Engineer lays Concrete. Map ----- +----------------------------------------------------+ | ?????????????????????????????????? | | ?????????????????????????????????? | | ?????????????????????????????????? | | ?????????????????????????????????? | | ?????????????????????????????????? | | ?????????????????????????????????? | | ?????????????????????????????????? | | ?????????????????????????????????? | | ?????????????????????????????????? | | ?????????????????????????????????? | | ?????????????????????????????????? | | ?????????????????????????????????? | | ?????????????????????????????????? | | ?????????????????????????????????? | | ?????????????????????????????????? | | ?????????????????????????????????? | | ?????????????????????????????????? | | ??####### ####???????????????????? | | ??#######+#####??????????????????? | | ??## ##???#???????????????? | | ?### ##???????????????????? | | ??## # # ?????????????? | | ??## # # ?????????????? | | ??## + # ?????????????? | | #?## # # ?T???????????? | | ?### @ # # ""???????????? | | ??## ## ###?????????????? | | ??## ## ##?#????????????? | | ?#########/### ##??##??????????? | | ?###### #g### ###?????????????? | | ?## # ### ##????#?????????? | | #### # ########? ?????? | | ## # # ####### ????? | | ### # ????? | | ## u # T ?????? | | ### #*=* ?????? | | ### + ####### ????????? | | ?## # #########???????? | | ?## ##?## ? ????????? | | ?### ! ##?#??? ????????? | | #### !!! ######## ?? ??????? | | ?####################????????????? | | ??###############?##?#???????????? | | ?#??###????##?#???##?# ?????????? | | #?##?###????#????##??? ??""??????? | | ?????#?#????#??#??#??? ????????? | | ??##?#?##???#??#????#????????????? | | ?????#???###?????????????????????? | | ???#?####??#???????#?????????????? | | ??????????#?????????##???????????? | +----------------------------------------------------+ Best States ------------- Heat Dissipation 31 Energy Generation 15 Energy Capacity 275 Matter Stores 270 Matter Capacity 450 Sight Range 16 Terrain Scan Range 14 Terrain Scan Density 85 Armor Coverage 150 Evasion (%) 40 Recoil Reduction 2 Item Schematics ----------------- None Robot Schematics ------------------ None Fabricated ------------ Nothing Alien Tech Used ----------------- None Achievements -------------- Storm Trooper Unlikely Earthworm Challenges ------------ None Game ------ Seed HugeThiefStatue Manual? 0 Play Time 00:26:27 Cumulative 1.3 hours Start 2024.11.03 @ 18:58:26 End 2024.11.03 @ 19:25:48 Sessions 1 Manual Loads 0 Difficulty Rogue Special Mode None Game No. 3 Rogue 2 Adventurer 1 Explorer 0 Win Type - Total 0 Types 0/0/0/0/0/0/0/0/0 Lore% 0 Gallery% 4 Achievement% 3 Wizard Run 0 Options --------- Layout 1 ASCII 0 Keyboard 0 Movement Arrows Keybinds 0 Fullscreen 1 Font 24/Smallcaps Map View 50x35 Zoom Use 0% Tactical HUD 0 Map Filters NONE Filters NONE Steam 1 RUN: 60d85eeb-f8e0-4af6-bb9f-14a73093fd68